bitfinex/quotes_SOLUSD_20260226
["timestamp","ask_amount","ask_price","bid_price","bid_amount"]
[1772087706913,0.61457274,87.775,87.743,0.577756]
[1772087707108,0.61457274,87.775,87.75,3.58733833]
[1772087707512,0.61457274,87.775,87.743,0.577756]
[1772087709396,0.61457274,87.769,87.736,0.57567136]
[1772087709595,0.61457274,87.759,87.721,0.57567136]
[1772087710808,0.61457274,87.759,87.723,0.57499414]
[1772087711014,0.61457274,87.769,87.731,0.57499414]
[1772087711212,0.61457274,87.769,87.74,4.1616635]
[1772087711617,0.61457274,87.776,87.75,3.58733833]
[1772087711800,0.61457274,87.776,87.74,3.58733833]
[1772087713013,0.61457274,87.769,87.731,0.57365927]
[1772087715418,0.61457274,87.767,87.732,0.57171968]
[1772087716197,0.61457274,87.767,87.74,3.58733833]
[1772087716393,11.39367423,87.768,87.74,3.58733833]
[1772087716394,0.61457274,87.774,87.741,0.57108868]
[1772087716599,0.61457274,87.778,87.751,0.57108868]
[1772087717012,0.61457274,87.778,87.744,0.57108868]
[1772087718823,3.58733833,87.78,87.74,3.58733833]
[1772087718824,0.61457274,87.776,87.74,3.58733833]
[1772087719199,0.61457274,87.769,87.737,0.56984284]
[1772087720626,5.36086188,87.798,87.741,0.56863229]
[1772087720627,11.39224643,87.779,87.741,0.56863229]
[1772087720806,0.61457274,87.778,87.741,0.56863229]
[1772087721930,0.61457274,87.776,87.741,0.56863229]
[1772087722513,0.61457274,87.769,87.731,0.56745645]
[1772087722915,0.61457274,87.769,87.74,3.5948615]
[1772087723109,0.61457274,87.769,87.74,4.16231795]
[1772087723825,0.61457274,87.769,87.741,0.56687588]
[1772087724007,0.61457274,87.769,87.74,3.5948615]
[1772087724008,0.61457274,87.778,87.751,0.56687588]
[1772087724204,0.61457274,87.778,87.744,0.56630075]
[1772087726725,0.61457274,87.778,87.751,0.56461089]
[1772087726938,104.1,87.787,87.745,11.39666077]
[1772087726939,104.1,87.787,87.761,0.56461089]
[1772087727120,0.6205866,87.789,87.751,0.56461089]
[1772087727322,39.86695826,87.792,87.736,0.56406141]
[1772087727323,0.6205866,87.769,87.736,0.56406141]
[1772087727520,0.6205866,87.769,87.731,0.56406141]
[1772087727843,0.6205866,87.769,87.732,0.56406141]
[1772087729630,0.6205866,87.767,87.732,0.56406141]
[1772087729834,0.6205866,87.759,87.72,3.5948615]
[1772087730017,0.6205866,87.749,87.711,0.56297735]
[1772087730336,0.6205866,87.749,87.712,11.96339306]
[1772087730546,0.6205866,87.749,87.713,0.56244451]
[1772087731530,0.6205866,87.747,87.713,0.56244451]
[1772087732245,0.6205866,87.747,87.715,0.56192201]
[1772087733636,0.6205866,87.747,87.717,0.56090136]
[1772087734238,11.39627114,87.748,87.721,0.55989082]
[1772087735737,12.02996004,87.753,87.721,0.55989082]
[1772087737041,0.63433824,87.752,87.721,0.55989082]
[1772087737539,11.39588152,87.751,87.721,0.55989082]
[1772087737731,0.63433824,87.75,87.721,0.55989082]
[1772087740946,28.48830975,87.756,87.721,0.55989082]
[1772087740947,0.63433824,87.748,87.721,0.55989082]
[1772087742545,0.63433824,87.748,87.712,0.55609384]
[1772087742732,0.63433824,87.748,87.713,0.55609384]
[1772087743150,0.63433824,87.746,87.713,0.55609384]
[1772087743848,0.63433824,87.746,87.71,0.2]
[1772087744033,0.63433824,87.729,87.694,0.55564396]
[1772087744346,0.63433824,87.729,87.696,0.55519685]
[1772087745331,0.63433824,87.727,87.696,0.55519685]
[1772087746374,3.5948615,87.73,87.696,0.55519685]
[1772087746375,0.63433824,87.725,87.696,0.55519685]
[1772087746927,0.63433824,87.725,87.701,0.55432972]
[1772087747228,0.63433824,87.752,87.711,0.55432972]
[1772087747430,0.63433824,87.752,87.699,3.69383402]
[1772087747431,0.63433824,87.752,87.721,0.55389818]
[1772087748259,11.3956218,87.753,87.731,0.55347315]
[1772087748434,12.02931077,87.758,87.731,0.55347315]
[1772087748940,0.63433824,87.757,87.731,0.55347315]
[1772087749140,0.63433824,87.757,87.724,0.55347315]
[1772087750560,0.63433824,87.755,87.724,0.55347315]
[1772087751161,0.63433824,87.755,87.72,3.5948615]
[1772087751362,0.63433824,87.755,87.721,11.95201042]
[1772087751558,0.63433824,87.755,87.722,0.55223158]
[1772087752154,0.63433824,87.755,87.731,0.55223158]
[1772087752651,0.63433824,87.784,87.75,3.5948615]
[1772087754351,0.63433824,87.782,87.75,3.5948615]
[1772087756152,0.63433824,87.782,87.72,3.5948615]
[1772087756153,0.63174641,87.769,87.73,3.5948615]
[1772087756462,0.63174641,87.767,87.73,3.5948615]
[1772087758156,0.63174641,87.767,87.729,11.39866926]
[1772087758157,0.63174641,87.767,87.723,11.39946294]
[1772087758656,0.63174641,87.765,87.723,11.39946294]
[1772087758838,0.63174641,87.765,87.73,3.5948615]
[1772087761259,0.63174641,87.739,87.7,14.99737005]
[1772087761839,0.63174641,87.739,87.71,3.5948615]
[1772087762537,0.63174641,87.737,87.71,3.5948615]
[1772087762752,0.63174641,87.737,87.72,3.5948615]
[1772087763650,3.5948615,87.76,87.73,3.5948615]
[1772087763848,28.48643866,87.762,87.731,0.60252528]
[1772087764252,28.48643866,87.762,87.73,3.5948615]
[1772087765267,11.39367423,87.768,87.74,3.5948615]
[1772087765556,11.39367423,87.768,87.732,0.60252528]
[1772087765864,0.61919532,87.767,87.732,0.60252528]
[1772087766857,0.61919532,87.759,87.72,14.99464532]
[1772087767038,0.61919532,87.749,87.71,3.5948615]
[1772087767243,0.61919532,87.739,87.703,0.60252528]
[1772087767441,0.61919532,87.739,87.701,3.69383402]
[1772087767745,0.61919532,87.739,87.702,12.0047738]
[1772087768139,0.61919532,87.729,87.69,3.5948615]
[1772087768342,0.61919532,87.729,87.687,0.60252528]
[1772087768550,0.61919532,87.729,87.69,3.5948615]
[1772087768762,0.61919532,87.727,87.69,3.5948615]
[1772087770156,0.61919532,87.727,87.69,14.99864162]
[1772087770360,0.61919532,87.727,87.691,0.60252528]
[1772087770559,0.61919532,87.727,87.7,3.5948615]
[1772087771361,0.61919532,87.735,87.71,4.19738678]
[1772087771564,0.61919532,87.735,87.71,3.5948615]
[1772087773169,0.61919532,87.735,87.704,0.60252528]
[1772087775066,0.61919532,87.733,87.7,3.5948615]
[1772087775269,0.61919532,87.729,87.69,3.5948615]
[1772087775464,0.61919532,87.719,87.68,3.5948615]
[1772087776273,0.61919532,87.709,87.662,15.70378582]
[1772087776465,0.61919532,87.709,87.67,3.7948615]
[1772087776673,0.61919532,87.709,87.68,3.5948615]
[1772087777473,0.61919532,87.707,87.68,3.5948615]
[1772087777663,0.61919532,87.707,87.677,0.60252528]
[1772087778965,0.61919532,87.707,87.681,0.60252528]
[1772087778966,11.4017285,87.706,87.681,0.60252528]
[1772087779171,0.61919532,87.729,87.691,0.60252528]
[1772087779364,0.61919532,87.728,87.701,0.60252528]
[1772087779674,0.61919532,87.728,87.7,3.5948615]
[1772087780578,0.61919532,87.728,87.693,0.60252528]
[1772087782364,0.61919532,87.726,87.69,3.5948615]
[1772087783274,0.61919532,87.726,87.69,4.20148072]
[1772087783970,0.61919532,87.726,87.69,3.59895544]
[1772087784166,0.61919532,87.726,87.692,0.60252528]
[1772087787159,0.62021462,87.724,87.692,0.60252528]
[1772087787361,0.62021462,87.719,87.692,0.60252528]
[1772087787975,0.62021462,87.719,87.681,0.58558748]
[1772087788478,0.62021462,87.717,87.681,0.58558748]
[1772087789475,0.62021462,87.717,87.69,4.18454292]
[1772087790578,0.62021462,87.717,87.691,0.58558748]
[1772087791264,0.62021462,87.715,87.691,0.58558748]
[1772087791465,0.62021462,87.715,87.683,0.58558748]
[1772087791666,0.62021462,87.709,87.676,0.58558748]
[1772087793774,39.90513977,87.708,87.676,0.58558748]
[1772087793972,0.62021462,87.699,87.67,0.2]
[1772087795090,0.62021462,87.699,87.67,0.82061129]
[1772087795664,0.62021462,87.699,87.671,0.62061129]
[1772087796269,11.40276859,87.698,87.671,0.62061129]
[1772087796789,12.01498384,87.698,87.671,0.62061129]
[1772087798684,0.61221525,87.697,87.671,0.62061129]
[1772087800690,5.36086188,87.679,87.601,0.63838309]
[1772087800888,0.61221525,87.619,87.57,3.69895544]
[1772087801095,0.61221525,87.589,87.57,0.1]
[1772087801311,3.59895544,87.58,87.56,0.1]
[1772087801682,3.59895544,87.57,87.54,0.2]
[1772087801983,3.59895544,87.56,87.54,0.2]
[1772087802189,3.59895544,87.58,87.54,3.59895544]
[1772087802797,11.41826236,87.579,87.542,0.62061129]
[1772087804089,11.41826236,87.579,87.551,0.62061129]
[1772087807201,0.61221525,87.587,87.551,0.62061129]
[1772087808304,9.67308819,87.58,87.551,0.62061129]
[1772087809902,12.03047761,87.579,87.551,0.62061129]
[1772087810299,11.41826236,87.579,87.551,0.62061129]
[1772087812004,9.67308819,87.58,87.551,0.62061129]
[1772087812584,9.67308819,87.57,87.551,0.62061129]
[1772087812787,0.61221525,87.569,87.534,0.62061129]
[1772087813184,9.67308819,87.57,87.534,0.62061129]
[1772087813386,9.67308819,87.57,87.541,0.62061129]
[1772087814404,11.41956628,87.569,87.541,0.62061129]
[1772087816498,0.63723362,87.595,87.551,0.63287835]
[1772087816700,9.67308819,87.58,87.551,0.63287835]
[1772087816892,39.95661852,87.595,87.551,0.63287835]
[1772087817098,39.95661852,87.595,87.541,11.42309763]
[1772087817099,9.67308819,87.59,87.561,0.63287835]
[1772087818495,11.41695875,87.589,87.561,0.63287835]
[1772087818909,9.67308819,87.57,87.53,9.87308819]
[1772087819117,0.63723362,87.576,87.51,9.67308819]
[1772087819411,0.63723362,87.576,87.53,9.67308819]
[1772087819412,9.67308819,87.57,87.53,9.67308819]
[1772087819591,9.67308819,87.57,87.508,3.69383402]
[1772087819592,0.63723362,87.576,87.54,9.67308819]
[1772087819792,0.63723362,87.576,87.509,0.14216157]
[1772087819793,0.63723362,87.559,87.477,45.91487819]
[1772087819993,222.63069562,87.589,87.51,9.67308819]
[1772087819994,9.67308819,87.55,87.51,9.67308819]
[1772087820413,0.63723362,87.587,87.54,9.67308819]
[1772087820710,28.54239687,87.589,87.56,9.67308819]
[1772087820916,28.54239687,87.589,87.561,0.63287835]
[1772087821098,0.63723362,87.597,87.561,0.63287835]
[1772087821293,220.3674435,88.254,87.571,0.63287835]
[1772087821294,0.63723362,87.609,87.571,0.63287835]
[1772087821610,0.63723362,87.617,87.581,0.63287835]
[1772087822208,0.63723362,87.612,87.581,0.63287835]
[1772087822797,39.94932142,87.611,87.581,0.63287835]
[1772087823098,0.63723362,87.589,87.486,102.87360263]
[1772087823422,0.63723362,87.579,87.54,9.67308819]
[1772087823597,0.63723362,87.579,87.55,9.67308819]
[1772087825036,0.63723362,87.579,87.551,0.63287835]
[1772087825319,45.65269442,87.619,87.551,0.63287835]
[1772087825320,11.41839274,87.578,87.551,0.63287835]
[1772087826699,39.9643746,87.578,87.551,0.63287835]
[1772087827323,11.41699291,87.589,87.561,0.63287835]
[1772087827815,12.05422653,87.589,87.561,0.63287835]
[1772087828599,40.5966234,87.589,87.561,0.63287835]
[1772087829116,12.05422653,87.589,87.561,0.63287835]
[1772087829312,9.67308819,87.6,87.563,0.63287835]
[1772087829313,11.41552511,87.6,87.563,0.63287835]
[1772087829517,11.41552511,87.6,87.571,0.63287835]
[1772087829919,0.63723362,87.599,87.571,0.63287835]
[1772087830608,39.95525011,87.598,87.571,0.63287835]
[1772087830921,0.63723362,87.597,87.571,0.63287835]
[1772087832000,0.63723362,87.595,87.571,0.63287835]
[1772087832722,0.63723362,87.595,87.561,0.63287835]
[1772087833806,0.63723362,87.595,87.571,0.63287835]
[1772087834006,0.63723362,87.595,87.561,0.63287835]
[1772087834204,0.63723362,87.593,87.561,0.63287835]
[1772087834510,11.41630705,87.594,87.561,0.63287835]
[1772087835023,11.41630705,87.594,87.562,0.63287835]
[1772087835219,11.41630705,87.594,87.571,0.63287835]
[1772087836710,11.41500388,87.604,87.581,0.63287835]
[1772087837912,0.63723362,87.614,87.581,0.63287835]
[1772087839014,9.67308819,87.6,87.566,0.63287835]
[1772087839326,0.63723362,87.599,87.566,0.63287835]
[1772087839523,0.63723362,87.599,87.571,0.63287835]
[1772087839720,9.67308819,87.61,87.571,0.63287835]
[1772087839921,11.41383128,87.613,87.581,0.63287835]
[1772087840908,11.41383128,87.613,87.591,0.63287835]
[1772087841125,0.63723362,87.617,87.591,0.63287835]
[1772087841515,9.67308819,87.61,87.574,0.63287835]
[1772087841714,0.63723362,87.609,87.574,0.63287835]
[1772087842912,0.63723362,87.609,87.581,0.63287835]
[1772087843111,11.41448269,87.608,87.581,0.63287835]
[1772087845121,0.63723362,87.608,87.581,0.63287835]
[1772087846432,0.63723362,87.608,87.571,0.64854502]
[1772087847639,0.62914123,87.606,87.571,0.64854502]
[1772087849534,0.62914123,87.606,87.572,0.64854502]
[1772087850040,0.62914123,87.604,87.572,0.64854502]
[1772087851325,104.1,87.632,87.558,28.55241993]
[1772087851326,0.62914123,87.659,87.583,0.64854502]
[1772087851639,0.62914123,87.659,87.576,3.69383402]
[1772087851640,0.62914123,87.649,87.601,0.64854502]
[1772087851827,0.62914123,87.649,87.61,3.60856252]
[1772087852140,0.62914123,87.639,87.601,0.64854502]
[1772087853034,0.62914123,87.638,87.601,0.64854502]
[1772087853431,0.62914123,87.638,87.602,0.64854502]
[1772087853638,0.62914123,87.638,87.611,0.64854502]
[1772087853936,0.62914123,87.638,87.62,3.60856252]
[1772087856339,11.41019664,87.641,87.613,0.68535417]
[1772087857628,0.69022084,87.641,87.613,0.68535417]
[1772087858233,0.69022084,87.657,87.63,3.60856252]
[1772087859151,11.40823218,87.656,87.627,0.68535417]
[1772087859343,0.69022084,87.655,87.627,0.68535417]
[1772087859524,0.69022084,87.655,87.62,4.29391669]
[1772087859837,0.69022084,87.655,87.621,0.68535417]
[1772087861043,11.40704119,87.666,87.641,0.68535417]
[1772087861243,0.69022084,87.665,87.641,0.68535417]
[1772087861545,0.69022084,87.665,87.631,0.68535417]
[1772087861724,0.69022084,87.665,87.631,12.09684097]
[1772087861926,0.69022084,87.665,87.632,0.68535417]
[1772087862648,11.40704119,87.666,87.641,0.68535417]
[1772087863227,0.69022084,87.659,87.615,0.68535417]
[1772087863452,0.69022084,87.659,87.621,0.68535417]
[1772087865422,3.60856252,87.66,87.621,0.68535417]
[1772087865423,11.40797189,87.658,87.621,0.68535417]
[1772087865628,0.69022084,87.657,87.621,0.68535417]
[1772087865837,0.69022084,87.657,87.63,3.60856252]
[1772087866529,0.69022084,87.657,87.631,0.68535417]
[1772087867444,12.09676135,87.669,87.641,0.68535417]
[1772087867623,0.69022084,87.668,87.641,0.68535417]
[1772087868645,0.69022084,87.666,87.641,0.68535417]
[1772087869552,0.69022084,87.666,87.631,0.68535417]
[1772087869849,0.69022084,87.666,87.632,0.68535417]
[1772087870069,11.40624802,87.672,87.641,0.68535417]
[1772087870545,0.69022084,87.671,87.641,11.41017807]
[1772087870753,0.69022084,87.671,87.642,0.68535417]
[1772087871049,0.1,87.7,87.661,0.68535417]
[1772087871229,0.1,87.7,87.69,3.60856252]
[1772087872434,0.1,87.7,87.681,0.68535417]
[1772087873053,0.1,87.7,87.683,0.68535417]
[1772087874952,0.1,87.7,87.68,3.60856252]
[1772087876454,0.71611681,87.699,87.661,0.71453111]
[1772087876755,0.71611681,87.699,87.67,3.60856252]
[1772087877137,0.71611681,87.699,87.671,12.1208114]
[1772087877741,0.1,87.7,87.671,12.1208114]
[1772087877742,12.1188854,87.698,87.671,0.71453111]
[1772087878040,0.71611681,87.697,87.671,0.71453111]
[1772087879149,0.71611681,87.695,87.671,0.71453111]
[1772087879861,0.71611681,87.695,87.68,3.60856252]
[1772087880358,0.71611681,87.695,87.67,3.60856252]
[1772087881050,0.71611681,87.693,87.66,3.60856252]
[1772087881363,0.71611681,87.689,87.653,0.71453111]
[1772087881548,0.71611681,87.679,87.645,0.71453111]
[1772087881958,0.71611681,87.679,87.65,3.60856252]
[1772087883560,0.71611681,87.677,87.65,3.60856252]
[1772087883955,0.71611681,87.684,87.66,4.32309363]
[1772087884355,0.71611681,87.684,87.66,3.60856252]
[1772087885345,0.71611681,87.684,87.652,0.71453111]
[1772087887861,0.71611681,87.682,87.65,3.60856252]
[1772087888367,3.60856252,87.67,87.631,0.71453111]
[1772087888569,0.71611681,87.649,87.61,3.60856252]
[1772087888858,0.71611681,87.649,87.61,4.32309363]
[1772087889068,3.60856252,87.65,87.61,4.32309363]
[1772087889069,0.71611681,87.639,87.61,4.32309363]
[1772087889263,0.71611681,87.639,87.611,0.71453111]
[1772087890254,0.71611681,87.658,87.63,4.32309363]
[1772087891150,3.69383402,87.677,87.612,11.41396155]
[1772087891151,0.71611681,87.67,87.641,0.71453111]
[1772087891654,0.71611681,87.659,87.63,3.60856252]
[1772087891862,0.71611681,87.659,87.631,0.71453111]
[1772087892062,0.71611681,87.659,87.64,3.60856252]
[1772087894178,0.71611681,87.659,87.631,0.71453111]
[1772087894675,0.71611681,87.659,87.632,11.41135658]
[1772087894880,0.71611681,87.659,87.64,3.60856252]
[1772087896178,0.71611681,87.665,87.64,3.60856252]
[1772087898463,0.71611681,87.663,87.64,3.60856252]
[1772087899380,0.71611681,87.663,87.64,4.32309363]
[1772087899680,0.71611681,87.663,87.641,0.71453111]
[1772087899884,0.71611681,87.663,87.642,0.71453111]
[1772087900178,11.40659189,87.669,87.642,0.71453111]
[1772087900366,12.1227087,87.669,87.642,0.71453111]
[1772087901361,0.71611681,87.678,87.66,3.60856252]
[1772087902679,0.71611681,87.678,87.657,0.71453111]
[1772087905082,0.71611681,87.694,87.671,0.71453111]
[1772087905282,11.40309806,87.696,87.64,3.60856252]
[1772087905283,0.71611681,87.679,87.641,0.71453111]
[1772087907602,0.70385325,87.677,87.643,0.67612123]
[1772087909687,0.70385325,87.675,87.643,0.67612123]
[1772087909890,0.70385325,87.681,87.651,0.67612123]
[1772087910274,0.70385325,87.679,87.643,0.67612123]
[1772087910474,0.70385325,87.679,87.64,3.60277292]
[1772087910980,0.70385325,87.679,87.641,0.67612123]
[1772087911175,0.70385325,87.679,87.641,12.08630596]
[1772087911485,0.70385325,87.679,87.642,0.67612123]
[1772087912288,0.70385325,87.677,87.642,0.67612123]
[1772087912500,0.70385325,87.677,87.616,3.69383402]
[1772087912501,0.70385325,87.669,87.63,4.27889415]
[1772087912673,0.70385325,87.669,87.611,28.53499546]
[1772087912674,0.70385325,87.659,87.621,0.67612123]
[1772087913110,3.60277292,87.65,87.621,0.67612123]
[1772087913393,3.60277292,87.65,87.61,3.60277292]
[1772087913394,0.70385325,87.649,87.611,0.67612123]
[1772087914486,0.67258973,87.639,87.611,0.67612123]
[1772087915173,0.67258973,87.639,87.612,11.41396155]
[1772087915376,0.67258973,87.639,87.613,0.66867118]
[1772087916991,0.67258973,87.659,87.63,3.60277292]
[1772087917172,0.67258973,87.659,87.631,0.66867118]
[1772087917984,0.67258973,87.659,87.621,0.66867118]
[1772087919094,0.67258973,87.649,87.613,0.66867118]
[1772087919398,0.67258973,87.639,87.606,0.66867118]
[1772087920494,0.67258973,87.637,87.606,0.66867118]
[1772087922998,0.67258973,87.637,87.608,0.66867118]
[1772087924881,0.67258973,87.637,87.61,3.60277292]
[1772087925179,0.67258973,87.637,87.61,4.2714441]
[1772087925580,0.67258973,87.637,87.611,12.08276301]
[1772087925883,0.67258973,87.637,87.612,0.66867118]
[1772087927200,0.67258973,87.635,87.604,0.66867118]
[1772087928079,0.67258973,87.635,87.61,3.60277292]
[1772087928276,0.67258973,87.635,87.611,0.66867118]
[1772087929977,0.67258973,87.629,87.601,0.66867118]
[1772087931206,0.67258973,87.629,87.6,3.60277292]
[1772087931389,0.67258973,87.629,87.591,0.66867118]
[1772087931593,0.67258973,87.619,87.583,0.66867118]
[1772087932482,3.60277292,87.62,87.585,0.66867118]
[1772087932483,0.67258973,87.617,87.585,0.66867118]
[1772087935204,0.67258973,87.615,87.59,4.2714441]
[1772087935803,0.67258973,87.615,87.59,0.66867118]
[1772087935997,11.41344046,87.616,87.59,0.66867118]
[1772087936305,11.41344046,87.616,87.566,3.69383402]
[1772087936306,0.70593653,87.667,87.612,0.07372902]
[1772087936604,0.70593653,87.667,87.65,3.60277292]
[1772087936806,0.70593653,87.689,87.65,3.60277292]
[1772087937196,0.70593653,87.687,87.651,11.40888295]
[1772087937986,0.70593653,87.669,87.629,11.41163273]
[1772087938198,0.70593653,87.669,87.65,3.60277292]
[1772087939291,0.70593653,87.679,87.66,3.60277292]
[1772087939605,32.20906394,87.7,87.651,11.40888295]
[1772087939606,0.70593653,87.696,87.67,3.60277292]
[1772087939901,0.70593653,87.696,87.68,3.60277292]
[1772087940301,0.70593653,87.696,87.67,3.60277292]
[1772087940799,0.70593653,87.696,87.664,0.0745141]
[1772087941000,0.70593653,87.696,87.68,3.60277292]
[1772087941301,0.70593653,87.694,87.652,0.07488592]
[1772087941606,0.70593653,87.694,87.66,3.60277292]
[1772087942103,0.6004173,87.694,87.66,3.60277292]
[1772087943397,11.40341874,87.693,87.661,11.40758147]
[1772087943600,3.60277292,87.68,87.65,3.60277292]
[1772087943908,0.66982069,87.679,87.65,3.60277292]
[1772087945306,0.66982069,87.677,87.64,3.60277292]
[1772087945600,0.66982069,87.677,87.626,3.69383402]
[1772087945601,0.66982069,87.669,87.632,11.41132275]
[1772087946207,0.66982069,87.659,87.626,11.41201978]
[1772087947009,0.66982069,87.659,87.63,3.60277292]
[1772087947196,0.66982069,87.659,87.631,0.18171477]
[1772087947701,0.56430146,87.659,87.632,11.69884335]
[1772087949403,3.60277292,87.67,87.632,11.69884335]
[1772087949404,3.60277292,87.68,87.64,3.60277292]
[1772087949605,0.66982069,87.669,87.64,3.60277292]
[1772087951019,0.66982069,87.669,87.642,0.28846708]
[1772087952637,0.66982069,87.669,87.643,11.40992435]
[1772087953120,0.66982069,87.669,87.637,11.41059724]
[1772087953313,0.66982069,87.667,87.64,3.60277292]
[1772087955418,0.66982069,87.667,87.641,11.70020727]
[1772087955621,0.66982069,87.667,87.642,0.29002254]
[1772087957524,0.66982069,87.667,87.643,11.40992435]
[1772087967036,0.66982069,87.667,87.643,11.70333369]
[1772087971641,0.69189294,87.665,87.638,0.29469711]
[1772087972026,0.69189294,87.665,87.64,3.60318856]
[1772087974235,0.69189294,87.665,87.641,11.41018473]
[1772087974536,0.69189294,87.665,87.641,11.70585154]
[1772087975541,104.1,87.695,87.66,3.60318856]
[1772087975542,28.50911124,87.692,87.66,3.60318856]
[1772087975747,3.60318856,87.69,87.66,3.60318856]
[1772087975924,28.50911124,87.692,87.66,3.60318856]
[1772087976245,3.70318856,87.7,87.681,0.67948249]
[1772087976246,0.1,87.7,87.681,0.67948249]
[1772087976422,0.1,87.7,87.69,3.60318856]
[1772087976622,104.1,87.738,87.691,0.67948249]
[1772087976818,0.1,87.75,87.71,4.28267105]
[1772087976819,11.39640101,87.747,87.71,4.28267105]
[1772087977321,39.88740355,87.747,87.711,0.67948249]
[1772087977543,0.74156927,87.744,87.711,0.67948249]
[1772087978036,0.74156927,87.744,87.71,3.60318856]
[1772087978037,0.74156927,87.729,87.69,3.60318856]
[1772087978230,0.74156927,87.729,87.685,0.67948249]
[1772087978421,0.74156927,87.729,87.69,3.60318856]
[1772087979118,0.74156927,87.719,87.68,3.60318856]
[1772087979324,0.74156927,87.719,87.681,0.67948249]
[1772087980932,0.74156927,87.717,87.69,3.60318856]
[1772087983441,0.74156927,87.715,87.69,3.60318856]
[1772087984738,0.74156927,87.715,87.69,4.28267105]
[1772087985243,0.74156927,87.725,87.7,3.60318856]
[1772087985743,11.39938899,87.724,87.7,3.60318856]
[1772087985952,0.74156927,87.723,87.7,3.60318856]
[1772087986131,0.74156927,87.723,87.687,0.67948249]
[1772087986335,0.74156927,87.719,87.687,0.67948249]
[1772087987668,0.74156927,87.717,87.69,3.60318856]
[1772087991062,0.74156927,87.715,87.691,0.67948249]
[1772087993365,0.74156927,87.728,87.701,0.67948249]
[1772087993566,11.39923587,87.726,87.71,3.60318856]
[1772087993864,11.39851863,87.731,87.711,0.67948249]
[1772087995193,0.74156927,87.747,87.721,0.67948249]
[1772087995353,0.74156927,87.747,87.72,3.60318856]
[1772087995556,0.74156927,87.747,87.71,4.28267105]
[1772087995860,0.74156927,87.747,87.72,3.60318856]
[1772087997178,11.39653089,87.746,87.72,3.60318856]
[1772087997475,0.7151277,87.745,87.72,3.60318856]
[1772087998471,0.7151277,87.739,87.702,0.70549499]
[1772087999085,39.88785812,87.746,87.677,3.69383402]
[1772087999086,0.7151277,87.729,87.696,0.70549499]
[1772087999375,0.7151277,87.719,87.681,0.70549499]
[1772088000166,0.7151277,87.719,87.682,0.70549499]
[1772088001169,0.7151277,87.707,87.674,0.70549499]
[1772088001498,11.4002504,87.718,87.691,0.70549499]
[1772088001785,0.7151277,87.717,87.691,0.70549499]
[1772088002373,0.7151277,87.722,87.7,3.60318856]
[1772088003288,0.7151277,87.748,87.701,0.70549499]
[1772088003583,0.7151277,87.747,87.711,0.70549499]
[1772088004282,0.7151277,87.747,87.72,3.60318856]
[1772088005982,0.1,87.75,87.68,3.60318856]
[1772088005983,0.1,87.75,87.73,3.60318856]
[1772088006184,0.1,87.75,87.731,0.70549499]
[1772088006888,11.49605814,87.75,87.731,0.70549499]
[1772088007088,0.7151277,87.749,87.72,3.60318856]
[1772088007285,0.7151277,87.739,87.701,0.70549499]
[1772088007665,0.7151277,87.729,87.694,0.70549499]
[1772088007978,0.7151277,87.727,87.701,0.70549499]
[1772088011798,0.7151277,87.727,87.703,0.70549499]
[1772088012171,0.7151277,87.734,87.711,0.70549499]
[1772088012711,0.7151277,87.741,87.72,4.30868355]
[1772088013089,0.7151277,87.741,87.721,0.70549499]
[1772088014902,104.8151277,87.749,87.723,0.70549499]
[1772088015200,104.8151277,87.749,87.722,11.39964889]
[1772088015201,104.1,87.749,87.73,4.30868355]
[1772088015398,104.1,87.749,87.731,0.70549499]
[1772088015695,0.1,87.75,87.74,3.60318856]
[1772088017594,0.1,87.75,87.73,3.60318856]
[1772088017903,0.8151277,87.75,87.73,4.30868355]
[1772088019603,0.1,87.76,87.741,0.70549499]
[1772088019799,0.1,87.77,87.731,11.39847944]
[1772088019800,11.49345463,87.77,87.75,3.60318856]
[1772088020490,0.1,87.77,87.75,3.60318856]
[1772088020678,12.10867211,87.769,87.75,3.60318856]
[1772088020876,0.1,87.77,87.731,39.89467804]
[1772088020877,11.39181214,87.783,87.761,0.70549499]
[1772088021079,0.7151277,87.778,87.76,3.60318856]
[1772088021778,0.7151277,87.776,87.76,3.60318856]
[1772088025981,0.69977354,87.774,87.75,3.60318856]
[1772088026195,0.69977354,87.774,87.74,4.32591191]
[1772088026400,0.69977354,87.774,87.741,0.72272335]
[1772088026708,0.69977354,87.774,87.75,3.60318856]
[1772088028484,0.69977354,87.759,87.722,0.72272335]
[1772088028714,0.69977354,87.749,87.722,0.72272335]
[1772088028892,0.69977354,87.749,87.71,3.60318856]
[1772088029206,0.69977354,87.749,87.71,4.32591191]
[1772088029394,0.69977354,87.749,87.711,0.72272335]
[1772088030595,0.69977354,87.747,87.711,0.72272335]
[1772088030782,0.69977354,87.747,87.713,0.72272335]
[1772088032908,0.69977354,87.745,87.713,0.72272335]
[1772088034518,0.69236792,87.767,87.741,0.74925007]
[1772088034898,12.08630178,87.766,87.741,0.74925007]
[1772088035092,0.69236792,87.765,87.741,0.74925007]
[1772088038597,11.39393386,87.766,87.741,0.74925007]
[1772088039106,0.69236792,87.765,87.741,0.74925007]
[1772088040224,11.39419351,87.764,87.741,0.74925007]
[1772088040599,12.08656143,87.764,87.741,0.74925007]
[1772088043121,0.69236792,87.763,87.741,0.74925007]